Cogmind - Beta 14 @@@ ROGUE MODE // 2024.11.10 @ 14:35:57 Player: Fangrelle Result: Destroyed by UG-IU7(R) with Subdweller Laser Performance ------------- Evolutions (0) 0 Regions Visited (2) 400 Robots Destroyed (40) 200 Value Destroyed (1158) 1158 Prototype IDs (2) 40 Alien Tech Used (0) 0 Bonus (0) 0 TOTAL SCORE: 1798 Bonus ------- None Cogmind --------- Core Integrity 0/250 Matter 117/300 Energy 250/250 System Corruption 0% Temperature Cool (6) Movement Treading (240) Ox1 Location -10/Subcaves Parts ------- > --- POWER (1) -------- Ion Engine > --- PROPULSION (2) --- Improved Treads Improved Treads > --- UTILITY (2) ------ Huge Storage Unit Seismic Detector > --- WEAPON (2) ------- Heavy Assault Rifle Heavy Assault Rifle > --- INVENTORY (25) --- Improved Treads Improved Treads High-capacity Matter Pod (0) High-capacity Matter Pod (0) Structural Scanner Subdweller Optics Signal Interpreter Improved Terrain Scanner Salvage Targeting Computer Salvage Targeting Computer Salvage Targeting Computer Targeting Computer ECM Suite Hacking Suite Cobbler Unit Subdweller Beam Cannon Heavy Battle Rifle Improved Light Cannon Improved Light Cannon Improved Light Cannon Improved Light Cannon Grenade Launcher Mining Laser Peak State ------------ > --- POWER ------------ Subdweller Power Source > --- PROPULSION ------- Improved Treads Improved Treads > --- UTILITY ---------- Huge Storage Unit Seismic Detector > --- WEAPON ----------- Improved Light Cannon Improved Light Cannon > --- INVENTORY -------- Improved Treads Improved Treads High-capacity Matter Pod High-capacity Matter Pod Structural Scanner Visual Processing Unit Signal Interpreter Signal Interpreter Improved Terrain Scanner Salvage Targeting Computer Salvage Targeting Computer Salvage Targeting Computer Salvage Targeting Computer Targeting Computer ECM Suite Hacking Suite Subdweller Beam Cannon Heavy Assault Rifle Heavy Assault Rifle Heavy Assault Rifle Improved Light Cannon Improved Light Cannon Grenade Launcher Mining Laser [Rating: 16] Favorites ----------- Power Ion Engine Engine Ion Engine Propulsion Improved Treads Treads Improved Treads Wheel Wheel Utility Seismic Detector Device Seismic Detector Storage Huge Storage Unit Processor Salvage Targeting Computer Weapon Improved Light Cannon Ballistic Gun Heavy Assault Rifle Ballistic Cannon Improved Light Cannon Launcher Grenade Launcher Special Weapon Mining Laser Build | -11 -10 -10 ------- Run | Yrd Mat Sub Slots Evolved . | . . . Power . | . . . Propulsion . | . . . Utility . | . . . Weapon . | . . . Parts Attached 45 | 7 25 13 Power 8 | 1 3 4 Engine 8 | 1 3 4 Core . | . . . Reactor . | . . . Propulsion 10 | 2 8 . Treads 6 | 2 4 . Leg . | . . . Wheel 4 | . 4 . Hover . | . . . Flight . | . . . Utility 7 | 2 3 2 Device 3 | 1 1 1 Storage 3 | 1 2 . Processor 1 | . . 1 Hackware . | . . . Protection . | . . . Artifact . | . . . Weapon 20 | 2 11 7 Energy Gun . | . . . Energy Cannon . | . . . Ballistic Gun 11 | 2 7 2 Ballistic Cannon 2 | . 2 . Launcher 3 | . . 3 Special Weapon 4 | . 2 2 Impact Weapon . | . . . Slashing Weapon . | . . . Piercing Weapon . | . . . Special Melee Weapon . | . . . Unidentified Prototypes . | . . . Parts Lost 6 | . 5 1 Power 1 | . . 1 Propulsion 4 | . 4 . Utility . | . . . Weapon 1 | . 1 . Highest Loss Streak 2 | . 2 1 To Critical Strikes . | . . . Average Slot Usage (%) 98 | . 97 99 Engine 13 | . 14 13 Treads 24 | . 21 28 Wheel 2 | . 5 . Device 13 | . 14 13 Storage 14 | . 14 14 Ballistic Gun 11 | . 19 2 Ballistic Cannon 12 | . 7 17 Launcher 3 | . . 7 Peak Build Rating 16 | 7 14 16 Average Rating 12 | 4 10 14 On Entrance 7 | . 7 14 Naked Turns . | . . . Heaviest Build 94 | 12 94 94 Greatest Support 46 | 40 46 46 Greatest Overweight (x) 7 | . 7 2 Average Overweight (x) 1 | . 1 1 Largest Inventory Capacity 25 | 8 25 25 Average Capacity 18 | 7 13 25 Most Carried 25 | 6 23 25 Average Carried 16 | 3 10 23 Final Capacity 25 | 8 25 25 Final Carried 24 | 5 23 24 Class Distribution -------------------- 100% | Mutant Dominant Class ---------------- Mutant | -10/Materials Mutant | -10/Subcaves Resources | -11 -10 -10 ----------- Run | Yrd Mat Sub Matter Collected 1187 | 228 654 305 Remotely . | . . . Salvage Created 1506 | 88 1248 170 Parts 98 | 5 80 13 Haulers Intercepted 2 | . 2 . Recyclers Shooed 1 | 1 . . Parts Field Recycled . | . . . Retrieved Matter . | . . . Parts Self-Destructed 10 | . . 10 Prevented . | . . . Kills | -11 -10 -10 ------- Run | Yrd Mat Sub Combat Hostiles Destroyed 28 | . 23 5 Guns 22 | . 22 . Cannons 3 | . 1 2 AOE 3 | . . 3 Classes Destroyed 10 | 2 6 2 Worker 2 | . 2 . Builder 1 | . 1 . Tunneler 1 | 1 . . Hauler 2 | . 2 . Recycler 2 | 1 1 . Operator 1 | . 1 . Watcher 3 | . 3 . Grunt 23 | . 23 . Cobbler 1 | . . 1 Subdweller 5 | . . 5 Best Kill Streak 7 | 2 7 2 Combat Bots Only 4 | . 4 2 Max Kills in Single Turn 2 | 1 2 1 Gunslinging 1 | . 1 . Exploded 1 | . . 1 Melee . | . . . Uniques/NPCs Destroyed . | . . . Combat | -11 -10 -10 -------- Run | Yrd Mat Sub Hostile Shots Fired 154 | . 126 28 Missed 36 | . 30 6 Damage Taken 1670 | . 1205 465 Core 259 | . 153 106 Absorbed by Shields . | . . . Regen/Repaired (Parts) 59 | . 59 . Core Remaining (%) 100 | 100 . . Volleys Fired 146 | 6 119 21 Largest 2 | 2 2 2 Hottest 139 | 40 100 139 Shots Fired 271 | 12 222 37 Gun 224 | 12 202 10 Cannon 24 | . 6 18 Launcher 7 | . . 7 Special 16 | . 14 2 Kinetic 248 | 12 208 28 Thermal 16 | . 14 2 Explosive 7 | . . 7 Electromagnetic . | . . . Robot Hit Streak 22 | 7 22 5 Robot Miss Streak 3 | 1 3 3 Penetration Max . | . . . Secondary Targets 5 | . 5 . Max Gunslinging Chain 1 | . 1 . Shots Hit Robots 161 | 10 130 21 Core Hits 68 | 3 53 12 Critical Kills . | . . . Critical Parts Destroyed . | . . . Critical Strikes . | . . . Melee Attacks . | . . . Impact . | . . . Slashing . | . . . Piercing . | . . . Sneak Attacks . | . . . Combat Hostiles . | . . . Follow-up Attacks . | . . . Damage Inflicted 2652 | 97 1808 747 Guns 1956 | 97 1745 114 Cannons 237 | . 63 174 Explosions 459 | . . 459 Melee . | . . . Ramming . | . . . Kinetic 2193 | 97 1808 288 Thermal . | . . . Explosive 459 | . . 459 Electromagnetic . | . . . Impact . | . . . Slashing . | . . . Piercing . | . . . Highest Corruption . | . . . Average Corruption . | . . . Corruption Purged . | . . . Corruption Blocked . | . . . Overload Shots . | . . . Overflow Damage . | . . . Projectiles . | . . . Explosions . | . . . Melee . | . . . Knockbacks 4 | . 1 3 Impact . | . . . Kinetic 4 | . 1 3 Secondary . | . . . Self-Inflicted Damage 32 | . . 32 Shots 1 | . . 1 Rammed . | . . . Targets Rammed . | . . . Kicked . | . . . Crushed . | . . . Highest Temperature 100 | . 100 . Average Temperature 17 | . 17 . Received Heat Transfer 810 | . 732 78 Siege Activations . | . . . Robots Corrupted . | . . . Combat Hostiles . | . . . Parts Fried . | . . . Impact Corruptions . | . . . Robots Melted . | . . . Combat Hostiles . | . . . Parts Melted . | . . . Heat Transferred . | . . . Parts Sabotaged . | . . . Parts Stolen . | . . . Parts Stripped . | . . . Power Chain Reactions . | . . . Alert | -11 -10 -10 ------- Run | Yrd Mat Sub Peak Influence 318 | 10 318 . Initial 6 | . 6 . Average 147 | 3 152 . Maximum Alert Level 1 | . 1 . Low Security (%) 62 | 100 60 . Level 1 37 | . 39 . Level 2 . | . . . Level 3 . | . . . Level 4 . | . . . Level 5 . | . . . High Security . | . . . Max Security . | . . . Squads Dispatched 8 | . 8 . Investigation 6 | . 6 . Extermination . | . . . Reinforcement 2 | . 2 . Assault . | . . . Garrison . | . . . Intercept . | . . . Searches Triggered . | . . . Construction Impeded . | . . . Haulers Reinforced . | . . . Active Scanning Responses . | . . . Cargo Convoy Interrupts . | . . . Stealth | -11 -10 -10 --------- Run | Yrd Mat Sub Distress Signals 3 | . 3 . Communications Jammed . | . . . Distress Signals . | . . . Times Spotted 38 | . 31 7 Peak Tracking Total 4 | . 4 2 Tactical Retreats 3 | . 3 . Traps | -11 -10 -10 ------- Run | Yrd Mat Sub Traps Triggered 3 | . 3 . Indirectly . | . . . Trap Hack Attempts . | . . . Triggered . | . . . Disarmed . | . . . Reprogrammed . | . . . Reused . | . . . Traps Extracted . | . . . Installed . | . . . Triggered . | . . . Machines | -11 -10 -10 ---------- Run | Yrd Mat Sub Machines Disabled 3 | . 3 . Max in Single Turn 1 | . 1 . Machines Repaired . | . . . Machines Dismantled . | . . . Machines Sabotaged . | . . . Overloaded Fab Kills . | . . . Hacking | -11 -10 -10 --------- Run | Yrd Mat Sub Machines Accessed 11 | . 10 1 Terminals 7 | . 7 . Fabricators . | . . . Repair Stations 1 | . 1 . Recycling Units 2 | . 2 . Scanalyzers . | . . . Garrison Access . | . . . Total Hacks 36 | . 33 3 Successful 22 | . 19 3 Failed 14 | . 14 . Catastrophic . | . . . Database Lockouts . | . . . Manual 24 | . 24 . Terminals 19 | . 19 . Fabricators . | . . . Repair Stations 6 | . 6 . Recycling Units 8 | . 8 . Scanalyzers . | . . . Garrison Access . | . . . Terminal Hacks 4 | . 1 3 Record 3 | . . 3 Prototype ID Bank 1 | . 1 . Fabricator Hacks . | . . . Repair Station Hacks 3 | . 3 . Scan Component 2 | . 2 . Repair 1 | . 1 . Recycling Unit Hacks 2 | . 2 . Report Inventory 2 | . 2 . Scanalyzer . | . . . Garrison Access Hacks . | . . . Unauthorized Hacks 13 | . 13 . Terminals 8 | . 8 . Botnet 6 | . 6 . Disrupt 1 | . 1 . Operators 1 | . 1 . Fabricators . | . . . Repair Stations . | . . . Recycling Units 5 | . 5 . Monitor 1 | . 1 . Reject 1 | . 1 . Mask 1 | . 1 . Tunnel 2 | . 2 . Scanalyzers . | . . . Garrison Access . | . . . Data Cores Recovered . | . . . Used . | . . . Hacking Detections 9 | . 9 . Full Trace Events 4 | . 4 . Feedback Events . | . . . Feedback Blocked . | . . . Robot Schematics Acquired . | . . . Robots Built . | . . . Authchips . | . . . Time . | . . . Total Robot Build Rating . | . . . Part Schematics Acquired . | . . . Parts Built . | . . . Authchips . | . . . Time . | . . . Total Part Build Rating . | . . . Parts Repaired 1 | . 1 . Time 32 | . 32 . Parts Recycled . | . . . Recycled Matter . | . . . Retrieved Matter . | . . . Retrieved Components . | . . . Parts Scanalyzed . | . . . Part Schematics Acquired . | . . . Parts Damaged . | . . . Bothacking | -11 -10 -10 ------------ Run | Yrd Mat Sub Used RIF Installer . | . . . Robots Hacked . | . . . Non-combat . | . . . Combat . | . . . Robot Hacks Applied . | . . . Relay Couplers Released . | . . . Fabnet Peak Effective % . | . . . Robots Rewired . | . . . Allies Hacked . | . . . Hacks Repelled . | . . . Allies | -11 -10 -10 -------- Run | Yrd Mat Sub Total Allies . | . . . Largest Group . | . . . Highest-Rated Group . | . . . Highest-Rated Ally . | . . . Total Orders . | . . . Ally Attacks . | . . . Total Damage . | . . . Kills . | . . . Allies Corrupted . | . . . Allies Melted . | . . . Intel | -11 -10 -10 ------- Run | Yrd Mat Sub Robot Analysis Total . | . . . Derelict Logs Recovered 1 | . . 1 Drone Launches . | . . . Drone Recoveries . | . . . Exploration | -11 -10 -10 ------------- Run | Yrd Mat Sub Turns Passed 5893 | 114 3065 2714 Spaces Moved 2001 | 55 1124 822 Core 24 | 5 19 . Treads 1424 | 50 552 822 Legs . | . . . Wheels 553 | . 553 . Hover . | . . . Flight . | . . . Fastest Speed 50 | 50 95 240 Average Speed 221 | 150 165 302 Slowest Speed 400 | 160 400 320 Overloaded Moves . | . . . Propulsion Burnouts . | . . . Robots Hopped . | . . . Cave-ins Triggered . | . . . Exploration Rate (%) 48 | 5 90 49 Regions Visited 2 Branch Regions 1 Pre-discovered Areas 4 | . 2 2 Known Exits Taken . | . . . Unknown Exits Taken 2 | 1 1 . Scrap Searched . | . . . Spaces Dug 6 | . 6 . Terrain Destroyed 37 | . 12 25 Melee . | . . . Projectile 12 | . 12 . AOE 25 | . . 25 Terrain Rammed . | . . . Walls Destroyed . | . . . Machines Disabled . | . . . Actions | -11 -10 -10 --------- Run | Yrd Mat Sub Total 3165 | 73 2088 1004 Wait 904 | . 766 138 Move 1999 | 54 1123 822 Hop . | . . . Pick Up 43 | 6 33 4 Fast Attach 19 | 6 11 2 Attach 2 | 1 1 . Detach . | . . . Swap 24 | . 13 11 Drop 28 | . 22 6 Fire 146 | 6 119 21 Melee . | . . . Ram . | . . . Kick . | . . . Crush . | . . . Escape Stasis . | . . . Rewire . | . . . Trap . | . . . Miscellaneous . | . . . Route ------- -11/Scrapyard -10/Materials (discovered 4 exits: [*Mat x2] / [*Min] / *Sub) -10/Subcaves (discovered 1 exit: [*Mat]) History --------- Turn | Location | Event 5 | -11/Scrapyard | Discovered new exit (range 15) 115 | -11/Scrapyard | Entered Materials 301 | -10/Materials | Build established: Mutant 1386 | -10/Materials | Discovered new exit (range 9) 1655 | -10/Materials | Repaired Hvy. Assault Rifle 2163 | -10/Materials | Discovered new exit (range 13) 2209 | -10/Materials | Core integrity fell below 50% 2311 | -10/Materials | Discovered new exit (range 5) 3158 | -10/Materials | Discovered new exit (range 8) 3180 | -10/Materials | Entered Subcaves 3879 | -10/Subcaves | Shifting Twisted Machinery released Flamer 3884 | -10/Subcaves | Shifting Twisted Machinery released Sub. Beam Cannon 4121 | -10/Subcaves | Shifting Twisted Machinery released Hvy. Battle Rifle 4235 | -10/Subcaves | Discovered new exit (range 10) 4529 | -10/Subcaves | A swath of the cavern ceiling suddenly collapsed 4788 | -10/Subcaves | Visited Clippyterm 4797 | -10/Subcaves | Learned location of Section 7 (-2) 5298 | -10/Subcaves | Learned location of Zion (-6) 5328 | -10/Subcaves | Core integrity fell below 20% 5894 | -10/Subcaves | Destroyed by UG-IU7(R) with Subdweller Laser Last Messages --------------- 05336_ W2-RV5(R) destroyed. 05344_ The unstable cave ceiling collapses. 05373_ Dropped Sub. Power Source. 05373_ Acquired Lgt. Ion Engine. 05381_ Subatomizers dissect the Sub. Power Source. 05401_ Acquired 60 matter. 05432_ Acquired 8 matter. 05442_ Subatomizers dissect the Sub. Power Source. 05666_ PS-7Q0(O) cries out in pain. 05666_ PS-7Q0(O) destroyed. 05671_ Acquired 53 matter. 05678_ Dropped Lgt. Ion Engine. 05679_ Subatomizers dissect the Cobbler Unit. 05682_ Dropped Sub. Power Source. 05682_ Dropped Signal Interpreter. 05683_ Acquired Cobbler Unit. 05692_ Subatomizers dissect the Wheel. 05701_ Discarded Salvage Targeting Computer. 05702_ Subatomizers dissect the Wheel. 05869_ UG-IU7(R): "SUBHATE!" Map ----- +----------------------------------------------------+ | ?????????????????????????????????????????????????? | | ?????????????????????????????????????????????????? | | ?????????????????????????????????????????????????? | | ?????????????????????????????????????????????????? | | ?????????????????????????????????????????????????? | | ?????????????????????????????????????????????????? | | ?????????????????????????????????????????????????? | | ?????????????????????????????????????????????????? | | ?????????????????????????????????????????????????? | | ?????????????????????????????????????????????????? | | ???????????????????????????#?????????????????????? | | ??????????????????????#????* ???????????????????? | | ?????????????????????? #?## ??????????????????? | | ???????????????? ????? ? ??????????????????? | | ????????????????? ??? ? ???????????????????? | | ?????????????????? ?? # ???????????????????? | | ?????????????????? ?? ^ ???????????????????? | | ??????????????????? ?? ???????????????###### | | ???????????? ???#??? ?? ??????????????## ## | | ????????????? ## ### ?# #???????????#### | | ??????????????? ## ????????????# # | | ????????????????? ????????????# #### | | ??????????????????? #????????????# ###??# | | ????????????????????? #?????????#### #????# | | ??????????????????????# ##??????### ##????## | | ?????????????????????## @ ##????## #?????# | | ?????????????????????# ##??## ##?????? | | ?????????????????????# #### ##??????? | | ?????????????????????## ^ R ####???????? | | ??????????????????????# ##????????? | | ??????????????????????# #????????? | | ??????????????????????# ##????????? | | ?????????????????????# * ## ^ #?????????? | | ???????????????????# ###### ^ ##?????????? | | ???????????????????### ##????## #??????????? | | ?????????????????????####???????#######??????????? | | ?????????????????????????????????????????????????? | | ?????????????????????????????????????????????????? | | ?????????????????????????????????????????????????? | | ?????????????????????????????????????????????????? | | ?????????????????????????????????????????????????? | | ?????????????????????????????????????????????????? | | ?????????????????????????????????????????????????? | | ?????????????????????????????????????????????????? | | ?????????????????????????????????????????????????? | | ?????????????????????????????????????????????????? | | ?????????????????????????????????????????????????? | | ?????????????????????????????????????????????????? | | ?????????????????????????????????????????????????? | | ?????????????????????????????????????????????????? | +----------------------------------------------------+ Best States ------------- Heat Dissipation 25 Energy Generation 15 Energy Capacity 250 Matter Stores 300 Matter Capacity 300 Sight Range 16 Terrain Scan Density 10 Evasion (%) 41 Recoil Reduction 2 Salvage Targeting 1 Item Schematics ----------------- None Robot Schematics ------------------ None Fabricated ------------ Nothing Alien Tech Used ----------------- None Achievements -------------- None Challenges ------------ None Game ------ Seed ProtonCoolantSpecial Manual? 0 Play Time 00:24:28 Cumulative 44.0 hours Start 2024.11.10 @ 14:10:56 End 2024.11.10 @ 14:35:57 Sessions 1 Manual Loads 0 Difficulty Rogue Special Mode None Game No. 82 Rogue 82 Adventurer 0 Explorer 0 Win Type - Total 0 Types 0/0/0/0/0/0/0/0/0 Lore% 35 Gallery% 30 Achievement% 32 Wizard Run 0 Options --------- Layout 0 ASCII 0 Keyboard 0 Movement Mouse Keybinds 0 Fullscreen 1 Font 24/Smallcaps Map View 183x50 Zoom Use 49% Tactical HUD 1 Map Filters NONE Filters NONE Steam 1 RUN: 93b707e7-4323-455d-9462-33b77c7dd950